bitfinex-derivatives/quotes_BTCF0:USTF0_20250330
["timestamp","ask_amount","ask_price","bid_price","bid_amount"]
[1743372934326,0.12206241,81940.0,81939.0,0.5199639]
[1743372934832,1e-08,81940.0,81939.0,0.5199639]
[1743372935636,1e-08,81940.0,81939.0,0.8807639]
[1743372936928,0.12206241,81940.0,81939.0,0.5199639]
[1743372937430,1e-08,81940.0,81939.0,0.5199639]
[1743372940834,0.00092001,81940.0,81939.0,0.5199639]
[1743372941027,1e-08,81940.0,81939.0,0.5199639]
[1743372941928,1e-08,81940.0,81939.0,0.73895698]
[1743372943532,0.3608,81968.0,81955.0,0.1220401]
[1743372943736,0.01597729,81963.0,81955.0,0.4836801]
[1743372944027,0.2073,81967.0,81955.0,0.6909801]
[1743372944432,0.3608,81968.0,81967.0,0.1220222]
[1743372944627,0.0004,81972.0,81971.0,0.1220163]
[1743372945231,0.0012,81972.0,81971.0,0.1228163]
[1743372945433,0.01085882,81972.0,81971.0,0.3301163]
[1743372945732,0.13287362,81972.0,81971.0,0.3301163]
[1743372946326,0.01085882,81972.0,81971.0,0.3301163]
[1743372946737,0.01096393,81972.0,81971.0,0.3301163]
[1743372947245,0.01016393,81972.0,81971.0,0.3301163]
[1743372947542,0.01016393,81972.0,81971.0,0.5270163]
[1743372947933,0.0004,81972.0,81971.0,0.5270163]
[1743372948837,0.1224148,81972.0,81971.0,0.5270163]
[1743372949149,0.0004,81972.0,81971.0,0.3301163]
[1743372949341,0.1232148,81972.0,81971.0,0.3301163]
[1743372949842,0.1994,81972.0,81971.0,0.3301163]
[1743372950244,0.4099,81972.0,81971.0,0.3301163]
[1743372950631,0.5319148,81972.0,81971.0,0.3301163]
[1743372951843,0.5319148,81972.0,81971.0,0.2081]
[1743372952045,0.5319148,81972.0,81971.0,0.3301163]
[1743372952339,0.4099,81972.0,81971.0,0.3301163]
[1743372952534,0.5319148,81972.0,81971.0,0.5408163]
[1743372952844,0.5319148,81972.0,81971.0,0.4188]
[1743372953446,0.5319148,81972.0,81971.0,0.0008]
[1743372953629,0.4099,81972.0,81971.0,0.1228163]
[1743372954033,0.0012,81972.0,81971.0,0.1228163]
[1743372954233,0.2111,81972.0,81971.0,0.5360163]
[1743372954431,0.21198,81972.0,81971.0,0.5360163]
[1743372955033,0.41788,81972.0,81971.0,0.5360163]
[1743372956039,0.5398948,81972.0,81971.0,0.5360163]
[1743372956351,0.55192269,81972.0,81971.0,0.5360163]
[1743372956653,0.5398948,81972.0,81971.0,0.414]
[1743372956840,0.5398948,81972.0,81971.0,0.5360163]
[1743372961350,0.00128,81972.0,81971.0,0.5360163]
[1743372961652,0.1224148,81972.0,81971.0,0.5360163]
[1743372961845,0.0012,81972.0,81971.0,0.5360163]
[1743372962047,0.1232148,81972.0,81971.0,0.5360163]
[1743372962244,0.0012,81972.0,81971.0,0.5360163]
[1743372964142,0.0004,81972.0,81971.0,0.5360163]
[1743372965151,0.3608,81979.0,81978.0,0.1220059]
[1743372965341,0.3608,81979.0,81978.0,0.1228059]
[1743372965342,0.3616,81979.0,81978.0,0.1228059]
[1743372966046,0.5636,81979.0,81978.0,0.3205059]
[1743372966248,0.5636,81979.0,81978.0,0.5323059]
[1743372967047,0.6856044,81979.0,81978.0,0.5323059]
[1743372967351,0.3248044,81979.0,81978.0,0.5323059]
[1743372967651,0.0008,81979.0,81978.0,0.5323059]
[1743372967847,0.2111,81983.0,81982.0,0.1219999]
[1743372968047,0.2119,81983.0,81982.0,0.1227999]
[1743372968246,0.0008,81983.0,81982.0,0.1227999]
[1743372968839,0.0008,81983.0,81982.0,0.4835999]
[1743372969046,0.2219743,82000.0,81999.0,0.1219746]
[1743372969253,0.23412094,82000.0,81999.0,0.1230146]
[1743372969456,0.2434392,82000.0,81999.0,0.1230146]
[1743372969655,0.2434392,82000.0,81999.0,0.1219746]
[1743372969957,0.2434392,82000.0,81999.0,0.1230146]
[1743372970157,0.10104001,82000.0,81999.0,0.1230146]
[1743372970355,0.10104001,82000.0,81999.0,0.3182146]
[1743372971460,0.1,82000.0,81999.0,0.3182146]
[1743372971652,0.10104001,82000.0,81999.0,0.3182146]
[1743372972164,0.2219731,82000.0,81999.0,0.3182146]
[1743372972354,0.2219731,82000.0,81999.0,0.5253146]
[1743372972355,0.2231331,82000.0,81999.0,0.5253146]
[1743372972750,0.2231331,82000.0,81999.0,0.1230146]
[1743372973151,0.2231331,82000.0,81999.0,0.00104]
[1743372973669,0.1219791,81997.0,81996.0,0.1219785]
[1743372973851,0.1219791,81997.0,81996.0,0.1230185]
[1743372973852,0.48381911,81997.0,81996.0,0.1230185]
[1743372974057,0.88211911,81997.0,81996.0,0.1230185]
[1743372974265,0.76014001,81997.0,81996.0,0.1230185]
[1743372974466,0.39934001,81997.0,81996.0,0.5261185]
[1743372974767,0.00104001,81997.0,81996.0,0.5261185]
[1743372975465,0.12301761,81997.0,81996.0,0.5261185]
[1743372975666,0.12301761,81997.0,81996.0,0.1230191]
[1743372976065,0.88211761,81997.0,81996.0,0.00104]
[1743372976456,0.88211761,81997.0,81996.0,0.1230191]
[1743372976862,0.52131761,81997.0,81996.0,0.1230191]
[1743372978068,0.39934001,81997.0,81996.0,0.1230191]
[1743372978269,0.39934001,81997.0,81996.0,0.5181191]
[1743372978867,0.00104001,81997.0,81996.0,0.5181191]
[1743372979078,0.00104001,81997.0,81996.0,0.8789191]
[1743372979378,0.1,82000.0,81999.0,0.1219746]
[1743372979569,0.10104001,82000.0,81999.0,0.1230146]
[1743372982077,0.1,82000.0,81999.0,0.1230146]
[1743372984377,0.25,82000.0,81999.0,0.1230146]
[1743372984675,0.1223672,82004.0,82003.0,0.1219687]
[1743372984882,0.0004,82004.0,82003.0,0.1230087]
[1743372985084,0.00148,82004.0,82003.0,0.5254087]
[1743372988374,0.00148,82004.0,82003.0,0.8862087]
[1743372988580,0.0004,82004.0,82003.0,0.8862087]
[1743372988887,0.19432001,82004.0,82003.0,0.8862087]
[1743372989476,0.40462001,82004.0,82003.0,0.8862087]
[1743372989681,0.52658721,82004.0,82003.0,0.6822087]
[1743372990279,0.52658721,82004.0,82003.0,0.56024]
[1743372990473,0.52658721,82004.0,82003.0,0.1230087]
[1743372990474,0.88738721,82004.0,82003.0,0.1230087]
[1743372990679,0.88738721,82004.0,82003.0,0.00104]
[1743372990879,0.1219776,81997.0,81985.0,0.36515502]
[1743372991076,0.121985,81992.0,81985.0,0.36515502]
[1743372991386,0.13403898,81992.0,81991.0,0.29236482]
[1743372991592,0.25598499,81992.0,81991.0,0.12292947]
[1743372991779,0.13403898,81992.0,81991.0,0.12292947]
[1743372992583,0.13403898,81992.0,81991.0,0.31822947]
[1743372992784,0.01205398,81992.0,81991.0,0.31822947]
[1743372993691,0.13403898,81992.0,81991.0,0.31822947]
[1743372994986,0.13403898,81992.0,81991.0,0.12292947]
[1743372995185,0.13403898,81992.0,81991.0,0.00094297]
[1743372995985,0.13403898,81992.0,81991.0,0.00018297]
[1743372996180,0.14356399,81992.0,81991.0,0.12216947]
[1743372996385,0.14356399,81992.0,81991.0,0.12292947]
[1743372998893,0.13235001,81992.0,81991.0,0.12292947]
[1743372999287,0.122825,81992.0,81991.0,0.12292947]
[1743372999590,0.00084,81992.0,81991.0,0.12292947]
[1743372999783,0.14377789,82000.0,81999.0,0.1219746]
[1743373000095,0.26647099,82000.0,81999.0,0.1228146]
[1743373000289,0.26647099,82000.0,81999.0,0.1219746]
[1743373000590,0.1226931,82000.0,81999.0,0.1227346]
[1743373000783,0.1226931,82000.0,81999.0,0.5128346]
[1743373002988,0.1226931,82000.0,81999.0,0.19666]
[1743373002989,0.1339733,82000.0,81999.0,0.19666]
[1743373003190,0.121982,81994.0,81993.0,0.1219827]
[1743373003390,0.1323224,81994.0,81993.0,0.1219827]
[1743373003695,0.14363014,81994.0,81993.0,0.5297427]
[1743373003884,0.14363014,81994.0,81993.0,0.20156]
[1743373004085,0.54943014,81994.0,81993.0,0.20156]
[1743373004285,0.67139102,81994.0,81993.0,0.00076]
[1743373006490,0.0609953,81989.0,81987.0,0.1219921]
[1743373006695,0.96488814,81988.0,81987.0,0.1226321]
[1743373006891,1.08764064,81988.0,81987.0,0.00064]
[1743373007304,1.20960152,81988.0,81987.0,0.00064]
[1743373007488,0.1219954,81985.0,81984.0,0.29184967]
[1743373007792,0.1437237,81985.0,81984.0,0.29248967]
[1743373007990,0.14372354,81985.0,81984.0,0.00064]
[1743373008191,0.1220029,81980.0,81979.0,0.00018297]
[1743373008494,0.1220029,81980.0,81971.0,0.29184967]
[1743373008495,0.1220148,81972.0,81971.0,0.29184967]
[1743373008795,0.52025586,81972.0,81971.0,0.29248967]
[1743373008990,0.53090027,81972.0,81971.0,0.29248967]
[1743373009391,0.93140027,81972.0,81971.0,0.29248967]
[1743373009591,1.05338198,81972.0,81971.0,0.29448967]
[1743373010095,0.1220222,81967.0,81963.0,0.00067099]
[1743373010297,0.72588327,81967.0,81966.0,0.36579502]
[1743373010510,0.72581805,81967.0,81966.0,0.36579502]
[1743373010703,0.73250245,81967.0,81966.0,0.36579502]
[1743373010894,0.86360871,81967.0,81966.0,0.36579502]
[1743373011097,0.86360835,81967.0,81966.0,0.36579502]
[1743373011298,0.84717873,81967.0,81966.0,0.36579502]
[1743373011504,0.83581327,81967.0,81966.0,0.1226637]
[1743373011705,0.83581327,81967.0,81966.0,0.19564]
[1743373011895,0.83581327,81967.0,81966.0,0.3176637]
[1743373012095,0.83581327,81967.0,81966.0,0.5148637]
[1743373012296,0.82612887,81967.0,81966.0,0.5188637]
[1743373012696,0.82612887,81967.0,81966.0,0.39684]
[1743373012891,0.67252887,81967.0,81966.0,0.39684]
[1743373013104,0.82612887,81967.0,81966.0,0.39684]
[1743373013301,0.82612887,81967.0,81966.0,0.00864]
[1743373013603,0.82612887,81967.0,81966.0,0.008]
[1743373013997,0.82616833,81967.0,81966.0,0.008]
[1743373014907,0.82616833,81967.0,81966.0,0.00864]
[1743373016507,0.1220267,81964.0,81963.0,0.00067099]
[1743373016696,0.49372656,81964.0,81963.0,0.00067099]
[1743373016901,0.1220371,81957.0,81956.0,0.4062]
[1743373017101,0.49373696,81957.0,81956.0,0.40684]
[1743373017609,0.1220505,81948.0,81940.0,0.2086]
[1743373017807,0.1220505,81948.0,81941.0,0.2112]
[1743373017808,0.48895036,81948.0,81941.0,0.2112]
[1743373018003,0.48905772,81948.0,81947.0,0.00120812]
[1743373018306,0.62307679,81948.0,81947.0,0.00048812]
[1743373018499,0.81907679,81948.0,81947.0,0.00048812]
[1743373019508,0.82874257,81948.0,81947.0,0.00048812]
[1743373020404,0.82974257,81948.0,81947.0,0.00048812]
[1743373021211,0.82974257,81948.0,81941.0,0.2112]
[1743373021413,0.1220595,81942.0,81941.0,0.21196]
[1743373021715,0.14920573,81942.0,81941.0,0.21196]
[1743373022105,0.27123954,81942.0,81941.0,0.21196]
[1743373022306,0.25534053,81942.0,81941.0,0.21196]
[1743373022515,0.66704053,81942.0,81941.0,0.21196]
[1743373022814,0.1220744,81932.0,81915.0,0.00048831]
[1743373023009,0.1220878,81923.0,81917.0,0.2088]
[1743373023213,0.49261502,81923.0,81917.0,0.2088]
[1743373023513,0.78774154,81923.0,81917.0,0.2088]
[1743373023909,0.79789526,81923.0,81917.0,0.2088]
[1743373024726,0.1220952,81918.0,81917.0,0.2088]
[1743373025019,0.1595898,81918.0,81917.0,0.2088]
[1743373025215,0.16003178,81918.0,81917.0,0.2088]
[1743373025420,0.28209836,81918.0,81917.0,0.2088]
[1743373025918,0.28309836,81918.0,81917.0,0.2088]
[1743373026413,0.29549216,81918.0,81917.0,0.2088]
[1743373026618,0.29649216,81918.0,81917.0,0.2088]
[1743373027215,0.29663121,81918.0,81917.0,0.2088]
[1743373028120,0.28423741,81918.0,81917.0,0.2088]
[1743373028918,0.29438477,81918.0,81917.0,0.2088]
[1743373029313,0.17231819,81918.0,81917.0,0.2088]
[1743373031723,0.18879053,81918.0,81917.0,0.2088]
[1743373032022,0.1221042,81912.0,81897.0,0.0610625]
[1743373032227,0.15102069,81912.0,81902.0,0.1221188]
[1743373032425,0.16116805,81912.0,81902.0,0.1221188]
[1743373032727,0.1221206,81901.0,81899.0,0.0004884]
[1743373033037,0.14931708,81901.0,81899.0,0.0004884]
[1743373033215,0.061064,81896.0,81892.0,0.00018308]
[1743373033419,0.1221325,81893.0,81892.0,0.00018308]
[1743373033626,0.1221459,81884.0,81876.0,0.3608]
[1743373033829,0.14934238,81884.0,81876.0,0.4829577]
[1743373034018,0.14934238,81884.0,81876.0,0.3608]
[1743373034215,0.14934238,81884.0,81879.0,0.1221524]
[1743373034522,0.35367999,81884.0,81876.0,0.3608]
[1743373034823,0.56447999,81884.0,81877.0,0.1221561]
[1743373035023,0.56447999,81884.0,81877.0,0.4071]
[1743373035024,0.56547999,81884.0,81877.0,0.4071]
[1743373035422,0.6789671,81884.0,81877.0,0.4071]
[1743373035623,0.6809671,81884.0,81877.0,0.4071]
[1743373036121,0.69142033,81884.0,81877.0,0.4071]
[1743373036321,0.1221549,81878.0,81877.0,0.4071]
[1743373036526,0.14935138,81878.0,81877.0,0.4071]
[1743373036721,0.17648205,81878.0,81877.0,0.4071]
[1743373037125,0.70151572,81878.0,81877.0,0.4071]
[1743373038025,0.70251572,81878.0,81877.0,0.4071]
[1743373038421,0.17746082,81878.0,81877.0,0.5292564]
[1743373038632,0.17748205,81878.0,81877.0,0.5292564]
[1743373038929,0.17648205,81878.0,81877.0,0.5292564]
[1743373039126,0.17718401,81878.0,81877.0,0.5292564]
[1743373039528,0.15005334,81878.0,81877.0,0.5292564]
[1743373040632,0.16033269,81878.0,81877.0,0.5292564]
[1743373040927,0.16033269,81878.0,81877.0,0.4071]
[1743373041128,0.16011973,81878.0,81877.0,0.4071]
[1743373041524,0.55981973,81878.0,81877.0,0.4071]
[1743373041725,0.55981973,81878.0,81877.0,0.2028]
[1743373042126,0.1221578,81876.0,81875.0,0.0001225]
[1743373042440,0.14984328,81876.0,81875.0,0.0001225]
[1743373042825,0.29862687,81876.0,81875.0,0.0001225]
[1743373043024,0.30034688,81876.0,81875.0,0.0001225]
[1743373043439,0.31738041,81876.0,81875.0,0.0001225]
[1743373043828,0.67818041,81876.0,81875.0,0.0001225]
[1743373044121,0.1221683,81869.0,81868.0,0.1989]
[1743373044322,0.1221683,81869.0,81857.0,0.2016]
[1743373044323,0.1221937,81852.0,81823.0,0.15372]
[1743373044526,0.88083811,81852.0,81842.0,0.1929]
[1743373044725,0.1222071,81844.0,81843.0,0.1222065]
[1743373044927,0.39784441,81844.0,81843.0,0.1222065]
[1743373045130,0.3978844,81844.0,81843.0,0.1222065]
[1743373045336,0.40816375,81844.0,81843.0,0.1222065]
[1743373045520,0.40816375,81844.0,81843.0,0.3211065]
[1743373045521,0.03972483,81844.0,81843.0,0.3211065]
[1743373045726,0.03796483,81844.0,81843.0,0.3211065]
[1743373046138,0.39876483,81844.0,81843.0,0.3211065]
[1743373046335,0.40048484,81844.0,81843.0,0.3211065]
[1743373046537,0.40148484,81844.0,81843.0,0.3211065]
[1743373047136,0.40148484,81844.0,81843.0,0.5309065]
[1743373047431,0.42768544,81844.0,81843.0,0.5309065]
[1743373047637,0.06688544,81844.0,81843.0,0.5309065]
[1743373047826,0.04832583,81844.0,81843.0,0.5309065]
[1743373048037,0.04660582,81844.0,81843.0,0.5309065]
[1743373048234,0.04560582,81844.0,81843.0,0.5309065]
[1743373048629,0.16878788,81844.0,81843.0,0.5309065]
[1743373048830,0.53138788,81844.0,81843.0,0.5309065]
[1743373049235,0.1222161,81837.0,81836.0,0.1979]
[1743373049434,0.03802294,81837.0,81836.0,0.3201176]
[1743373050329,0.06508915,81837.0,81836.0,0.1222176]
[1743373050536,0.60170525,81837.0,81836.0,0.1222176]
[1743373050930,0.48040925,81837.0,81836.0,0.3224176]
[1743373051838,0.60262535,81837.0,81836.0,0.3224176]
[1743373052035,0.48040925,81837.0,81836.0,0.3224176]
[1743373052538,0.48040925,81837.0,81836.0,0.5161176]
[1743373053045,0.47988443,81837.0,81836.0,0.5161176]
[1743373053541,0.60210053,81837.0,81836.0,0.5161176]
[1743373054041,0.47988443,81837.0,81836.0,0.5161176]
[1743373054642,0.47224242,81837.0,81836.0,0.5161176]
[1743373054941,0.47177759,81837.0,81836.0,0.5161176]
[1743373058234,0.05737759,81837.0,81836.0,0.5161176]
[1743373058545,0.05565758,81837.0,81836.0,0.5161176]
[1743373059036,0.03662934,81837.0,81836.0,0.5161176]
[1743373060839,0.01027935,81837.0,81836.0,0.5161176]
[1743373061037,0.01033358,81837.0,81836.0,0.5161176]
[1743373061341,0.02679857,81844.0,81843.0,0.1222071]
[1743373061539,0.02851858,81844.0,81843.0,0.1222071]
[1743373061735,0.03031858,81844.0,81843.0,0.1222071]
[1743373061929,0.02859857,81844.0,81843.0,0.1222071]
[1743373062134,0.02859857,81844.0,81843.0,0.7163071]
[1743373064433,0.42159857,81844.0,81843.0,0.7163071]
[1743373065641,0.02859857,81844.0,81843.0,0.7163071]
[1743373065937,0.01027935,81844.0,81843.0,0.7163071]
[1743373066729,0.01027935,81850.0,81849.0,0.1221981]
[1743373066940,0.01203935,81850.0,81849.0,0.1221981]
[1743373067244,0.42863935,81850.0,81849.0,0.1221981]
[1743373067834,0.01203935,81850.0,81849.0,0.1221981]
[1743373068430,0.00176,81850.0,81849.0,0.1221981]
[1743373069242,0.3608,81863.0,81856.0,0.0610937]
[1743373069449,0.36200001,81863.0,81862.0,0.1221787]
[1743373069747,0.371967,81863.0,81862.0,0.1228187]
[1743373070635,0.373967,81863.0,81862.0,0.1228187]
[1743373070949,0.375967,81863.0,81862.0,0.1228187]
[1743373075346,0.4061,81868.0,81867.0,0.1221713]
[1743373075552,0.4061,81868.0,81867.0,0.1228513]
[1743373075553,0.40698,81868.0,81867.0,0.1228513]
[1743373076553,0.41298,81868.0,81867.0,0.1228513]
[1743373076737,0.42244459,81868.0,81867.0,0.1228513]
[1743373078754,0.0004,81876.0,81870.0,0.1221668]
[1743373079051,1e-07,81892.0,81891.0,0.1221355]
[1743373079251,0.07043961,81896.0,81895.0,0.1221295]
[1743373079555,2e-08,81896.0,81895.0,0.13527164]
[1743373079756,0.14377789,81900.0,81899.0,0.1221235]
[1743373079947,0.14493789,81900.0,81899.0,0.1232835]
[1743373081649,0.00116,81900.0,81899.0,0.1232835]
[1743373081845,0.1944,81903.0,81902.0,0.1221191]
[1743373082051,0.39970001,81903.0,81902.0,0.1233191]
[1743373083256,0.39970001,81903.0,81902.0,0.1353191]
[1743373084557,0.39970001,81903.0,81902.0,0.1293191]
[1743373084752,0.39970001,81903.0,81902.0,0.1353191]
[1743373085349,0.39970001,81903.0,81902.0,0.1293191]
[1743373085560,0.39970001,81903.0,81902.0,0.1333191]
[1743373086146,0.39970001,81903.0,81902.0,0.1323191]
[1743373087147,0.3612,81924.0,81911.0,0.0610527]
[1743373087349,0.19844,81918.0,81917.0,0.1220967]
[1743373087554,0.00064,81918.0,81917.0,0.1236567]
[1743373088152,0.00064,81918.0,81917.0,0.5298567]
[1743373088558,0.00064,81918.0,81917.0,0.53917889]
[1743373088859,0.0004,81924.0,81923.0,0.1220878]
[1743373089159,0.00018319,81926.0,81925.0,0.1220848]
[1743373089347,0.3608,81934.0,81925.0,0.1220848]
[1743373089348,0.3608,81934.0,81933.0,0.1220729]
[1743373089544,0.15,81950.0,81939.0,0.1220639]
[1743373089749,0.3292496,81949.0,81939.0,0.4845839]
[1743373090061,0.2072,81949.0,81939.0,0.1237839]
[1743373090249,0.4004,81948.0,81939.0,0.1237839]
[1743373090445,0.1220565,81944.0,81939.0,0.1237839]
[1743373090864,0.4004,81943.0,81939.0,0.1237839]
[1743373091674,0.1224624,81940.0,81939.0,0.1237839]
[1743373091963,0.0044,81940.0,81939.0,0.1237839]
[1743373093562,0.0074,81940.0,81939.0,0.1237839]
[1743373095460,0.00018308,81948.0,81947.0,0.122052]
[1743373095655,0.2105,81949.0,81948.0,0.1220505]
[1743373095851,0.9478883,81971.0,81953.0,0.0610209]
[1743373096050,0.3608,81981.0,81966.0,0.1220237]
[1743373096051,0.1953,81967.0,81966.0,0.1220237]
[1743373096363,0.2051442,81967.0,81966.0,0.1237037]
[1743373096546,0.21534976,81967.0,81966.0,0.1237037]
[1743373096750,0.23132187,81967.0,81966.0,0.1237037]
[1743373096951,0.21534976,81967.0,81966.0,0.1237037]
[1743373097355,0.23431941,81967.0,81966.0,0.1237037]
[1743373097752,0.21834976,81967.0,81966.0,0.1237037]
[1743373097952,0.20850556,81967.0,81966.0,0.1237037]
[1743373098159,0.34046741,81967.0,81966.0,0.1237037]
[1743373098357,0.35736888,81967.0,81966.0,0.1237037]
[1743373098660,0.01093965,81967.0,81966.0,0.4845037]
[1743373098962,0.4117,81987.0,81966.0,0.4845037]
[1743373098963,0.2046,81979.0,81978.0,0.1220059]
[1743373099147,0.15348,81998.0,81978.0,0.1220059]
[1743373099148,0.1219811,81995.0,81987.0,0.1219925]
[1743373099351,0.1994,81994.0,81987.0,0.1236725]
[1743373099555,0.1219868,81991.0,81987.0,0.5315725]
[1743373099753,0.1219883,81990.0,81987.0,0.5315725]
[1743373099953,0.1994,81989.0,81987.0,0.5315725]
[1743373101054,0.32139,81989.0,81987.0,0.5315725]
[1743373101457,0.2013,81988.0,81987.0,0.5315725]
[1743373101958,0.4,81988.0,81987.0,0.5315725]
[1743373102164,0.521991,81988.0,81987.0,0.5315725]
[1743373102549,0.521991,81988.0,81987.0,0.00168]
[1743373102753,0.1220029,81980.0,81979.0,0.00018295]
[1743373103056,0.1220029,81980.0,81979.0,0.12218735]
[1743373103253,0.13782242,81980.0,81979.0,0.00186295]
[1743373103456,0.122033,81962.0,81961.0,0.1220243]
[1743373103764,0.0610114,81967.0,81966.0,0.1220158]
[1743373104156,0.00128,81967.0,81966.0,0.1232958]
[1743373104664,0.1233022,81967.0,81966.0,0.1232958]
[1743373105252,0.13923986,81967.0,81966.0,0.1232958]
[1743373106061,0.13914317,81967.0,81966.0,0.1232958]
[1743373106758,0.1233022,81967.0,81966.0,0.00128]
[1743373106962,0.1220341,81959.0,81953.0,0.0610209]
[1743373107150,0.1220341,81959.0,81952.0,0.4218]
[1743373107151,0.1220341,81959.0,81958.0,0.00146295]
[1743373107355,0.1233141,81959.0,81958.0,0.00146295]
[1743373107956,0.26159527,81959.0,81958.0,0.00146295]
[1743373108160,0.26159527,81959.0,81958.0,0.00018295]
[1743373108358,0.27336899,81959.0,81958.0,0.00018295]
[1743373108550,0.25710078,81959.0,81958.0,0.00018295]
[1743373108755,0.25710065,81959.0,81958.0,0.00018295]
[1743373109560,0.1220505,81948.0,81940.0,0.0610305]
[1743373109759,0.12329051,81948.0,81947.0,0.00172812]
[1743373109960,0.5275443,81953.0,81952.0,0.1220446]
[1743373110150,0.53998403,81953.0,81952.0,0.1220446]
[1743373110357,0.53998403,81953.0,81952.0,0.1232446]
[1743373110562,0.53998403,81953.0,81952.0,0.3164446]
[1743373110759,0.41585447,81953.0,81952.0,0.3164446]
[1743373110961,0.54785564,81953.0,81952.0,0.3164446]
[1743373112362,0.02031254,81953.0,81952.0,0.3164446]
[1743373112559,0.01967254,81953.0,81952.0,0.3164446]
[1743373112760,0.02031254,81953.0,81952.0,0.3164446]
[1743373113758,0.14235564,81953.0,81952.0,0.3164446]
[1743373113966,0.53415564,81953.0,81952.0,0.3164446]
[1743373114357,0.41211254,81953.0,81952.0,0.3164446]
[1743373114567,0.02031254,81953.0,81952.0,0.3164446]
[1743373114773,0.01967254,81953.0,81952.0,0.3164446]
[1743373115468,1e-08,81953.0,81952.0,0.3164446]
[1743373115668,0.00018295,81961.0,81960.0,0.1220326]
[1743373115870,0.00018295,81961.0,81960.0,0.4841126]
[1743373116272,0.00018295,81961.0,81960.0,0.8785126]
[1743373117074,0.01202698,81961.0,81960.0,0.8785126]
[1743373117368,0.00018295,81961.0,81960.0,0.8785126]
[1743373117570,0.00146295,81961.0,81960.0,0.8785126]
[1743373118273,0.01330085,81961.0,81960.0,0.8785126]
[1743373119664,0.1908052,81980.0,81979.0,0.1220044]
[1743373119964,0.32965449,81980.0,81979.0,0.1232044]
[1743373120161,0.69045449,81980.0,81979.0,0.1232044]
[1743373120474,0.81246448,81980.0,81979.0,0.1232044]
[1743373120666,0.69045449,81980.0,81979.0,0.1232044]
[1743373121062,0.69045449,81980.0,81979.0,0.3177044]
[1743373121262,0.01305129,81980.0,81979.0,0.3177044]
[1743373121468,0.01185128,81980.0,81979.0,0.3177044]
[1743373121671,0.01305129,81980.0,81979.0,0.3177044]
[1743373121869,0.13505419,81980.0,81979.0,0.0012]
[1743373122462,0.52205419,81980.0,81979.0,0.1232044]
[1743373123085,0.6440359,81980.0,81979.0,0.0012]
[1743373123270,0.1220148,81972.0,81967.0,0.1871]
[1743373123467,0.13450608,81972.0,81971.0,0.00138295]
[1743373123672,0.13450608,81972.0,81971.0,0.31049925]
[1743373123868,0.13450608,81972.0,81971.0,0.49589925]
[1743373124173,0.52010608,81972.0,81971.0,0.49589925]
[1743373126377,0.88090608,81972.0,81971.0,0.37388295]
[1743373126584,0.88090608,81972.0,81971.0,0.00138295]
[1743373126775,0.88090608,81972.0,81971.0,0.00018295]
[1743373127176,0.88090608,81972.0,81971.0,0.00146295]
[1743373128088,1.00289969,81972.0,81971.0,0.00146295]
[1743373129291,1.01505992,81972.0,81971.0,0.00146295]
[1743373129790,1.00289969,81972.0,81971.0,0.00146295]
[1743373130085,1.00274324,81972.0,81971.0,0.00146295]
[1743373130383,1.00274324,81972.0,81971.0,0.12347925]
[1743373130593,1.00274324,81972.0,81971.0,0.00146295]
[1743373131575,1.00274324,81972.0,81971.0,0.19176295]
[1743373132583,0.37313483,81972.0,81971.0,0.51687925]
[1743373132784,0.01233483,81972.0,81971.0,0.51687925]
[1743373133294,0.13434963,81972.0,81971.0,0.51687925]
[1743373133976,0.13434963,81972.0,81971.0,0.39486295]
[1743373134491,0.13434963,81972.0,81971.0,0.51687925]
[1743373135477,0.13434963,81972.0,81971.0,0.7347972]
[1743373136091,0.01233483,81972.0,81971.0,0.7347972]
[1743373136283,0.00064,81972.0,81971.0,0.7347972]
[1743373136587,0.00064,81972.0,81971.0,1.0955972]
[1743373137182,0.3608,81982.0,81978.0,0.0610028]
[1743373137382,0.1219988,81985.0,81984.0,0.1219954]
[1743373137582,0.1350066,81985.0,81984.0,0.1234754]
[1743373138317,0.12339881,81985.0,81984.0,0.1234754]
[1743373139205,0.12439881,81985.0,81984.0,0.1234754]
[1743373139403,0.00240001,81985.0,81984.0,0.1234754]
[1743373139600,0.001,81985.0,81984.0,0.1234754]
[1743373142185,0.001,81985.0,81984.0,0.1234769]
[1743373142586,0.1229954,81985.0,81984.0,0.1234769]
[1743373142892,0.1244354,81985.0,81984.0,0.1234769]
[1743373143095,0.13387296,81985.0,81984.0,0.1234769]
[1743373143292,0.13287296,81985.0,81984.0,0.1294769]
[1743373143892,0.13287296,81985.0,81984.0,0.1324769]
[1743373144090,0.14267248,81985.0,81984.0,0.01048]
[1743373144402,0.02067708,81985.0,81984.0,0.1324769]
[1743373144835,0.01923708,81985.0,81984.0,0.1304769]
[1743373145009,0.00979952,81985.0,81984.0,0.1304769]
[1743373145216,0.00058295,81988.0,81984.0,0.00848]
[1743373145510,0.1219954,81985.0,81984.0,0.00248]
[1743373145713,0.13377242,81985.0,81984.0,0.003]
[1743373146011,0.26591594,81985.0,81984.0,0.003]
[1743373146393,0.26599047,81985.0,81984.0,0.001]
[1743373146597,0.64399047,81985.0,81984.0,0.001]
[1743373146790,0.65387006,81985.0,81984.0,0.001]
[1743373147290,0.64301851,81985.0,81984.0,0.001]
[1743373147487,0.65484936,81985.0,81984.0,0.00244]
[1743373147792,0.1210029,81980.0,81979.0,0.21791795]
[1743373147990,0.13423376,81980.0,81979.0,0.34132235]
[1743373148296,0.14411335,81980.0,81979.0,0.34132235]
[1743373148497,0.1322825,81980.0,81979.0,0.34132235]
[1743373148895,0.14410183,81980.0,81979.0,0.34132235]
[1743373149490,0.14507575,81980.0,81979.0,0.34132235]
[1743373149794,0.14507575,81980.0,81979.0,0.1234044]
[1743373149996,0.15450061,81980.0,81979.0,0.1234044]
[1743373151005,0.15450061,81980.0,81979.0,0.0014]
[1743373151315,0.15450061,81980.0,81979.0,0.1234044]
[1743373151684,0.15450061,81980.0,81979.0,0.0014]
[1743373152596,0.15450061,81980.0,81979.0,0.1968]
[1743373153285,0.66135746,81980.0,81979.0,0.1968]
[1743373153591,0.67126114,81980.0,81979.0,0.1968]
[1743373153982,0.68723779,81980.0,81979.0,0.1968]
[1743373154388,0.70359151,81980.0,81979.0,0.1968]
[1743373155399,0.7038715,81980.0,81979.0,0.1968]
[1743373156895,0.7038814,81980.0,81979.0,0.1968]
[1743373157691,0.1220148,81972.0,81971.0,0.00018295]
[1743373157995,0.65850892,81972.0,81971.0,0.00018295]
[1743373158193,0.65850892,81972.0,81971.0,0.00118295]
[1743373158601,1.03830892,81972.0,81971.0,0.00118295]
[1743373158797,1.04818851,81972.0,81971.0,0.00118295]
[1743373160197,1.04818851,81972.0,81971.0,0.38008295]
[1743373161299,1.17018212,81972.0,81971.0,0.00118295]
[1743373161493,1.17014437,81972.0,81971.0,0.00018295]
[1743373161693,1.17114437,81972.0,81971.0,0.00018295]
[1743373162206,1.20372637,81972.0,81971.0,0.00018295]